fUST/lending_fUST_20250620
["ID","MTS","AMOUNT","RATE_DAILY","PERIOD"]
[366749644,1750431048041,-1344.73,0.00020811,2]
[366749645,1750431048051,-3259.61,0.00020811,2]
[366749646,1750431048061,-460.0,0.00020811,2]
[366749647,1750431048072,-473.67,0.00020811,2]
[366749648,1750431048082,-460.0,0.00020811,2]
[366749649,1750431048093,-460.0,0.00020811,2]
[366749650,1750431048103,-460.0,0.00020811,2]
[366749651,1750431048113,-684.83,0.00020811,2]
[366749652,1750431048123,-281.05578387,0.00020811,2]
[366749653,1750431048133,-477.17,0.00020811,2]
[366749654,1750431048143,-197.165566,0.00020811,2]
[366749655,1750431048153,-460.0,0.00020811,2]
[366749656,1750431048163,-920.41,0.00020811,2]
[366749657,1750431048174,-460.0,0.00020811,2]
[366749658,1750431048185,-611.5,0.00020811,2]
[366749659,1750431048195,-500.0,0.00020833,2]
[366749660,1750431048207,-6532.119199,0.00020946,2]
[366749661,1750431048217,-151.0,0.00020946,2]
[366749662,1750431048227,-151.0,0.00020946,2]
[366749664,1750431048237,-151.0,0.00020946,2]
[366749665,1750431048247,-171.88158986,0.00020986,2]
[366749667,1750431048257,-460.0,0.00020986,2]
[366749669,1750431048267,-164.48735856,0.00020986,2]
[366749672,1750431048278,-3253.42,0.00020986,2]
[366749673,1750431048288,-740.88,0.00020986,2]
[366749676,1750431048298,-1438.6,0.00020986,2]
[366749677,1750431048308,-460.0,0.00020986,2]
[366749679,1750431048318,-460.0,0.00020992,2]
[366749681,1750431048328,-462.63667911,0.00020992,2]
[366749683,1750431048338,-738.13,0.00020992,2]
[366749685,1750431048347,-460.0,0.00020992,2]
[366749688,1750431048357,-460.0,0.00020992,2]
[366749690,1750431048367,-460.0,0.00020992,2]
[366749691,1750431048377,-460.0,0.00020992,2]
[366749694,1750431048387,-460.0,0.00020992,2]
[366749696,1750431048398,-460.0,0.00020992,2]
[366749698,1750431048408,-460.0,0.00020992,2]
[366749700,1750431048420,-460.0,0.00020992,2]
[366749701,1750431048429,-410.0,0.00020992,2]
[366749703,1750431048439,-460.0,0.00020992,2]
[366749705,1750431048449,-460.0,0.00020992,2]
[366749707,1750431048460,-1310.9,0.00020992,2]
[366749709,1750431048470,-460.0,0.00020992,2]
[366749711,1750431048480,-460.0,0.00020992,2]
[366749713,1750431048490,-460.0,0.00020992,2]
[366749715,1750431048501,-460.0,0.00020992,2]
[366749717,1750431048510,-460.0,0.00020992,2]
[366749719,1750431048522,-460.0,0.00020992,2]
[366749721,1750431048532,-486.53565264,0.00020993,2]
[366749723,1750431048542,-460.0,0.00020993,2]
[366749725,1750431048552,-460.0,0.00020993,2]
[366749727,1750431048563,-460.0,0.00020993,2]
[366749729,1750431048573,-460.0,0.00020993,2]
[366749731,1750431048582,-460.0,0.00020993,2]
[366749733,1750431048592,-1100.98,0.00020993,2]
[366749735,1750431048602,-460.0,0.00020993,2]
[366749737,1750431048611,-460.0,0.00020993,2]
[366749739,1750431048622,-1057.04,0.00020993,2]
[366749741,1750431048631,-460.0,0.00020993,2]
[366749743,1750431048642,-460.0,0.00020993,2]
[366749744,1750431048656,-460.0,0.00020993,2]
[366749746,1750431048665,-768.21,0.00020993,2]
[366749748,1750431048675,-460.0,0.00020993,2]
[366749750,1750431048685,-460.0,0.00020993,2]
[366749752,1750431048695,-487.3,0.00020993,2]
[366749754,1750431048705,-516.42,0.00020993,2]
[366749756,1750431048719,-460.0,0.00020993,2]
[366749758,1750431048728,-610.14,0.00020993,2]
[366749760,1750431048739,-510.41,0.00020993,2]
[366749762,1750431048748,-460.0,0.00020994,2]
[366749764,1750431048758,-1429.27,0.00020994,2]
[366749766,1750431048767,-460.0,0.00020994,2]
[366749768,1750431048777,-986.94,0.00020994,2]
[366749770,1750431048786,-460.0,0.00020994,2]
[366749772,1750431048796,-1516.08,0.00020994,2]
[366749774,1750431048805,-460.0,0.00020994,2]
[366749776,1750431048815,-3817.68,0.00020994,2]
[366749778,1750431048825,-1145.28,0.00020994,2]
[366749779,1750431048836,-1148.61,0.00020994,2]
[366749780,1750431048846,-520.04379335,0.00020994,2]
[366749782,1750431048856,-1080.37,0.00020994,2]
[366749784,1750431048866,-460.0,0.00020994,2]
[366749785,1750431048875,-460.0,0.00020995,2]
[366749787,1750431048884,-460.0,0.00020995,2]
[366749789,1750431048894,-460.0,0.00020995,2]
[366749791,1750431048903,-575.18,0.00020995,2]
[366749793,1750431048912,-460.0,0.00020995,2]
[366749795,1750431048922,-460.0,0.00020995,2]
[366749797,1750431048932,-384.58060037,0.00020995,2]
[366749798,1750431048944,-460.0,0.00020995,2]
[366749800,1750431048956,-389.771852,0.00020999,2]
[366749802,1750431048967,-389.771852,0.00020999,2]
[366749803,1750431048978,-151.0,0.00020999,2]
[366749804,1750431048988,-202.53883994,0.00021,2]
[366749805,1750431048999,-301.01670579,0.00021075,2]
[366749806,1750431049009,-460.0,0.00021084,2]
[366749807,1750431049019,-460.0,0.00021084,2]
[366749808,1750431049029,-1352.02,0.00021084,2]
[366749809,1750431049039,-2448.83,0.00021084,2]
[366749810,1750431049049,-460.0,0.00021084,2]
[366749811,1750431049059,-2727.09,0.00021084,2]
[366749812,1750431049069,-331.99,0.00021084,2]
[366749813,1750431049079,-551.453002,0.00021084,2]
[366749814,1750431049089,-577.1,0.00021084,2]
[366749815,1750431049100,-601.5,0.00021084,2]
[366749816,1750431049110,-460.0,0.00021085,2]
[366749817,1750431049119,-286.8,0.00021085,2]
[366749818,1750431049130,-2293.94,0.00021085,2]
[366749819,1750431049141,-2904.92,0.00021085,2]
[366749820,1750431049151,-460.0,0.00021085,2]
[366749821,1750431049161,-1252.35,0.00021085,2]
[366749822,1750431049172,-1295.45,0.00021085,2]
[366749823,1750431049182,-1344.73,0.00021085,2]
[366749824,1750431049193,-3259.61,0.00021085,2]
[366749825,1750431049203,-473.67,0.00021085,2]
[366749826,1750431049214,-460.0,0.00021085,2]
[366749827,1750431049223,-460.0,0.00021085,2]
[366749828,1750431049234,-684.83,0.00021085,2]
[366749829,1750431049244,-477.17,0.00021085,2]
[366749830,1750431049254,-460.0,0.00021085,2]
[366749831,1750431049264,-920.41,0.00021085,2]
[366749832,1750431049274,-460.0,0.00021085,2]
[366749833,1750431049284,-611.5,0.00021085,2]
[366749834,1750431049293,-500.0,0.00021095,8]
[366749835,1750431049304,-1230.889339,0.00021197,4]
[366749836,1750431049315,-150.26498568,0.000212,2]
[366749837,1750431049325,-5000.0,0.00021207,2]
[366749838,1750431049335,-151.0,0.00021257,2]
[366749839,1750431049344,-151.0,0.00021257,2]
[366749840,1750431049354,-151.0,0.00021257,2]
[366749841,1750431049364,-151.0,0.00021257,2]
[366749842,1750431049374,-151.0,0.00021257,2]
[366749843,1750431049384,-1531.041092,0.00021257,2]
[366749844,1750431049394,-1531.041092,0.00021257,2]
[366749845,1750431049403,-460.0,0.0002126,2]
[366749846,1750431049413,-3253.42,0.0002126,2]
[366749847,1750431049422,-740.88,0.0002126,2]
[366749848,1750431049432,-1438.6,0.0002126,2]
[366749849,1750431049442,-460.0,0.0002126,2]
[366749850,1750431049452,-168.0,0.00021263,2]
[366749851,1750431049462,-460.0,0.00021266,2]
[366749852,1750431049471,-738.13,0.00021266,2]
[366749853,1750431049481,-460.0,0.00021266,2]
[366749854,1750431049491,-460.0,0.00021266,2]
[366749855,1750431049500,-460.0,0.00021266,2]
[366749856,1750431049510,-460.0,0.00021266,2]
[366749857,1750431049520,-460.0,0.00021266,2]
[366749858,1750431049530,-460.0,0.00021266,2]
[366749859,1750431049539,-460.0,0.00021266,2]
[366749860,1750431049549,-460.0,0.00021266,2]
[366749861,1750431049559,-1310.9,0.00021266,2]
[366749862,1750431049568,-460.0,0.00021266,2]
[366749863,1750431049577,-460.0,0.00021266,2]
[366749864,1750431049587,-460.0,0.00021266,2]
[366749865,1750431049596,-460.0,0.00021266,2]
[366749866,1750431049605,-460.0,0.00021266,2]
[366749867,1750431049615,-460.0,0.00021266,2]
[366749868,1750431049625,-460.0,0.00021267,2]
[366749869,1750431049634,-460.0,0.00021267,2]
[366749870,1750431049644,-447.6988769,0.00021267,2]
[366749871,1750431049658,-460.0,0.00021267,2]
[366749872,1750431049670,-1100.98,0.00021267,2]
[366749873,1750431049679,-460.0,0.00021267,2]
[366749874,1750431049689,-460.0,0.00021267,2]
[366749875,1750431049698,-1057.04,0.00021267,2]
[366749876,1750431049709,-460.0,0.00021267,2]
[366749877,1750431049718,-460.0,0.00021267,2]
[366749878,1750431049728,-460.0,0.00021267,2]
[366749879,1750431049737,-768.21,0.00021267,2]
[366749880,1750431049746,-460.0,0.00021267,2]
[366749881,1750431049756,-460.0,0.00021267,2]
[366749882,1750431049765,-487.3,0.00021267,2]
[366749883,1750431049775,-516.42,0.00021267,2]
[366749884,1750431049784,-460.0,0.00021267,2]
[366749885,1750431049794,-610.14,0.00021267,2]
[366749886,1750431049803,-510.41,0.00021267,2]
[366749887,1750431049813,-460.0,0.00021268,2]
[366749888,1750431049822,-1429.27,0.00021268,2]
[366749889,1750431049832,-460.0,0.00021268,2]
[366749890,1750431049842,-986.94,0.00021268,2]
[366749891,1750431049851,-460.0,0.00021268,2]
[366749892,1750431049860,-1516.08,0.00021268,2]
[366749893,1750431049870,-460.0,0.00021268,2]
[366749894,1750431049880,-3817.68,0.00021268,2]
[366749895,1750431049889,-1145.28,0.00021268,2]
[366749896,1750431049899,-1148.61,0.00021268,2]
[366749897,1750431049909,-1080.37,0.00021268,2]
[366749898,1750431049918,-460.0,0.00021268,2]
[366749899,1750431049929,-151.0,0.00021268,2]
[366749900,1750431049940,-151.0,0.00021268,2]
[366749901,1750431049949,-151.0,0.00021268,2]
[366749902,1750431049962,-1500.0,0.00021268,2]
[366749903,1750431049971,-984.16389248,0.00021268,2]
[366749904,1750431049981,-1500.0,0.00021268,2]
[366749905,1750431049990,-1500.0,0.00021268,2]
[366749906,1750431050001,-1500.0,0.00021268,2]
[366749907,1750431050011,-1500.0,0.00021268,2]
[366749908,1750431050020,-1500.0,0.00021268,2]
[366749909,1750431050030,-460.0,0.00021269,2]
[366749910,1750431050039,-460.0,0.00021269,2]
[366749911,1750431050049,-575.18,0.00021269,2]
[366749912,1750431050058,-460.0,0.00021269,2]
[366749913,1750431050069,-460.0,0.00021269,2]
[366749914,1750431050079,-460.0,0.00021269,2]
[366749915,1750431050090,-301.01670579,0.0002133,2]
[366749916,1750431050100,-800.0,0.00021334,2]
[366749917,1750431050110,-500.0,0.00021342,2]
[366749918,1750431050119,-460.0,0.00021358,2]
[366749919,1750431050129,-460.0,0.00021358,2]
[366749920,1750431050138,-1352.02,0.00021358,2]
[366749921,1750431050148,-2448.83,0.00021358,2]
[366749922,1750431050158,-233.75,0.00021358,2]
[366749923,1750431050167,-2727.09,0.00021358,2]
[366749924,1750431050176,-577.1,0.00021358,2]
[366749925,1750431050186,-601.5,0.00021358,2]
[366749926,1750431050195,-460.0,0.00021359,2]
[366749927,1750431050205,-2293.94,0.00021359,2]
[366749928,1750431050218,-2904.92,0.00021359,2]
[366749929,1750431050228,-460.0,0.00021359,2]
[366749930,1750431050237,-1252.35,0.00021359,2]
[366749931,1750431050247,-1082.7752812,0.00021359,2]
[366749932,1750431051750,-181.77065553,0.00019987,2]
[366749933,1750431051760,-401.51457119,0.00019989,2]
[366749934,1750431051792,-460.0,0.00019988,2]
[366749935,1750431051802,-63.2445067,0.00019989,2]
[366749936,1750431051811,-460.0,0.00020164,2]
[366749937,1750431051822,-460.0,0.00020438,2]
[366749938,1750431051833,-500.0,0.00020548,2]
[366749939,1750431051844,-500.0,0.00020548,2]
[366749940,1750431051855,-500.0,0.00020548,2]
[366749941,1750431051865,-500.0,0.00020548,2]
[366749942,1750431051874,-500.0,0.00020548,2]
[366749943,1750431051883,-500.0,0.00020548,2]
[366749944,1750431051893,-500.0,0.00020548,2]
[366749945,1750431051902,-500.0,0.00020548,2]
[366749946,1750431051911,-500.0,0.00020548,2]
[366749947,1750431051921,-269.53449561,0.00020548,2]
[366749948,1750431051930,-500.0,0.00020548,2]
[366749949,1750431051939,-500.0,0.00020548,2]
[366749950,1750431051949,-500.0,0.00020548,2]
[366749951,1750431051960,-500.0,0.00020548,2]
[366749952,1750431051970,-500.0,0.00020548,2]
[366749953,1750431051979,-500.0,0.00020548,2]
[366749954,1750431051989,-500.0,0.00020548,2]
[366749955,1750431051998,-500.0,0.00020548,2]
[366749956,1750431052007,-500.0,0.00020548,2]
[366749957,1750431052017,-461.72,0.00020712,2]
[366749958,1750431052027,-2869.72,0.0002081,2]
[366749959,1750431052037,-2869.72,0.00021084,2]
[366749960,1750431052047,-2869.72,0.00021358,2]
[366749961,1750431052057,-212.6747188,0.00021359,2]
[366749962,1750431052067,-1344.73,0.00021359,2]
[366749963,1750431052077,-3259.61,0.00021359,2]
[366749964,1750431052087,-473.67,0.00021359,2]
[366749965,1750431052096,-460.0,0.00021359,2]
[366749966,1750431052106,-460.0,0.00021359,2]
[366749967,1750431052115,-684.83,0.00021359,2]
[366749968,1750431052124,-477.17,0.00021359,2]
[366749969,1750431052134,-460.0,0.00021359,2]
[366749970,1750431052143,-920.41,0.00021359,2]
[366749971,1750431052153,-460.0,0.00021359,2]
[366749972,1750431052163,-611.5,0.00021359,2]
[366749973,1750431052172,-500.0,0.00021369,2]
[366749974,1750431052182,-500.0,0.00021397,2]
[366749975,1750431052192,-5456.9185268,0.000214,5]
[366749976,1750431052202,-5456.91852678,0.000214,5]
[366749977,1750431052213,-5456.91852678,0.000214,5]
[366749978,1750431052222,-168.0,0.00021404,2]
[366749979,1750431052231,-5456.91852678,0.00021417,5]
[366749980,1750431052242,-500.0,0.00021424,2]
[366749981,1750431052252,-168.0,0.00021461,2]
[366749982,1750431052262,-215.0738,0.0002148,2]
[366749983,1750431052271,-151.0,0.00021486,2]
[366749984,1750431052281,-152.387913,0.00021486,2]
[366749985,1750431052291,-151.0,0.00021486,2]
[366749986,1750431052300,-151.0,0.00021486,2]
[366749987,1750431052311,-163.002578,0.00021486,2]
[366749988,1750431052322,-163.002578,0.00021486,2]
[366749989,1750431052331,-151.0,0.00021486,2]
[366749990,1750431052342,-483.496699,0.00021486,2]
[366749991,1750431052351,-483.496699,0.00021486,2]
[366749992,1750431052362,-151.0,0.00021486,2]
[366749993,1750431052372,-151.0,0.00021486,2]
[366749994,1750431052381,-151.0,0.00021486,2]
[366749995,1750431052391,-152.508771,0.00021486,2]
[366749996,1750431052401,-172.087777,0.00021486,2]
[366749997,1750431052411,-172.087777,0.00021486,2]
[366749998,1750431052420,-450.279792,0.00021486,2]
[366749999,1750431052430,-450.279792,0.00021486,2]
[366750000,1750431052441,-151.0,0.00021486,2]
[366750001,1750431052451,-170.624338,0.00021486,2]
[366750002,1750431052462,-800.0,0.00021491,2]
[366750003,1750431052473,-111180.56247751,0.00021499,2]
[366750004,1750431052486,-64402.49589487,0.00021499,2]
[366750005,1750431052502,-500.0,0.00020548,2]
[366750006,1750431052512,-3675.52963772,0.00021499,2]
[366750007,1750431052570,-372.0194781,0.00020262,2]
[366750008,1750431052582,-87.9805219,0.00020262,2]
[366750009,1750431052592,-460.0,0.00020536,2]
[366750010,1750431052601,-500.0,0.00020548,2]
[366750011,1750431052611,-500.0,0.00020548,2]
[366750012,1750431052621,-500.0,0.00020548,2]
[366750013,1750431052631,-500.0,0.00020548,2]
[366750014,1750431052641,-467.99381162,0.00020548,2]
[366750015,1750431052656,-32.00618838,0.00020548,2]
[366750016,1750431052666,-500.0,0.00020548,2]
[366750017,1750431052676,-500.0,0.00020548,2]
[366750018,1750431052686,-2547.99381162,0.00021499,2]
[366750019,1750431057165,-182.84925607,0.00019988,2]
[366750020,1750431061257,-184.05286007,0.00019988,2]
[366750021,1750431066997,-93.09788386,0.00019988,2]
[366750022,1750431067022,-66.84339059,0.00019988,2]
[366750023,1750431070992,-167.80893483,0.00019988,2]
[366750024,1750431071023,-177.02203055,0.00019988,2]
[366750025,1750431078121,-204.76240816,0.00019987,2]
[366750026,1750431081126,-139.23172636,0.00019987,2]
[366750027,1750431081152,-11.76827364,0.00019988,2]
[366750028,1750431082768,-158.46845455,0.00019988,2]
[366750029,1750431084703,-210.31204284,0.00019988,2]
[366750030,1750431086926,-186.72856847,0.00019988,2]
[366750031,1750431091418,-300.0,0.00019414,2]
[366750032,1750431098104,-156.4667223,0.00019414,2]
[366750033,1750431100830,-180.821,0.00019414,2]
[366750034,1750431124294,-187.918352,0.00019413,2]
[366750035,1750431128784,-112.081648,0.00019413,2]
[366750036,1750431128814,-59.50795745,0.00019414,2]
[366750037,1750431162393,-160.175969,0.00019413,2]
[366750038,1750431174277,-249.45,0.00019413,2]
[366750039,1750431197069,-50.374031,0.00019413,2]
[366750040,1750431197094,-235.255969,0.00019413,2]
[366750041,1750431239473,-41.71485794,0.00019413,2]
[366750042,1750431239496,-147.22301762,0.00019413,2]
[366750043,1750431243182,-165.666,0.00019413,2]
[366750044,1750431249010,-154.02278158,0.00019413,2]
[366750047,1750431281060,-34.91509398,0.00019413,2]
[366750048,1750431281083,-14.4427277,0.00019413,2]
[366750049,1750431281106,-168.0654835,0.00019413,2]
[366750050,1750431281131,-28.75871241,0.00019413,2]
[366750051,1750431285473,-180.27555046,0.00019413,2]
[366750053,1750431303135,-157.0,0.00019412,2]
[366750054,1750431307639,-171.58960545,0.00019313,2]
[366750055,1750431307671,-92.13840428,0.00019412,2]
[366750056,1750431312607,-50.86159572,0.00019412,2]
[366750057,1750431312632,-240.82252222,0.00019412,2]
[366750059,1750431340891,-214.07362194,0.00019412,2]
[366750060,1750431348590,-359.0,0.00019412,2]
[366750061,1750431350987,-167.75225103,0.00019412,2]
[366750062,1750431361832,-218.35160481,0.00019412,2]
[366750063,1750431361857,-33.09076185,0.00019412,2]
[366750064,1750431387534,-251.41184371,0.00019412,2]
[366750065,1750431394463,-15.49739444,0.00019412,2]
[366750066,1750431394491,-269.52732314,0.00019412,2]
[366750067,1750431403792,-30.47267686,0.00019412,2]
[366750068,1750431403816,-211.00306773,0.00019413,2]
[366750069,1750431406226,-39.9626694,0.00019413,2]
[366750070,1750431406252,-128.0373306,0.00019413,2]
[366750071,1750431408149,-320.7242476,0.00019413,2]
[366750072,1750431421373,-11.2384218,0.00019413,2]
[366750073,1750431421397,-167.3465586,0.00019413,2]
[366750074,1750431425218,-179.4001372,0.00019412,2]
[366750076,1750431428684,262.764002,0.00013699,2]
[366750077,1750431435553,-120.5998628,0.00019412,2]
[366750078,1750431435578,-75.6752379,0.00019413,2]
[366750086,1750431448434,-186.72856847,0.00019413,2]
[366750093,1750431463507,-30.24963503,0.00019413,2]
[366750094,1750431463531,-147.25624717,0.00019413,2]
[366750096,1750431472191,-160.0,0.00019413,2]
[366750097,1750431482026,-159.99797474,0.00019413,2]
[366750098,1750431482048,-30.67532823,0.00019413,2]
[366750099,1750431494582,-155.66251111,0.00019412,2]
[366750100,1750431502793,-144.33748889,0.00019412,2]
[366750101,1750431502817,-12.98618956,0.00019413,2]
[366750102,1750431504959,-205.07040764,0.00019413,2]
[366750103,1750431514611,-168.03110711,0.00019413,2]
[366750116,1750431603053,-219.63599433,0.00019391,2]
[366750117,1750431603080,-53.64238955,0.00019412,2]
[366750118,1750431607965,-197.97,0.00019412,2]
[366750120,1750431613125,-48.38761045,0.00019412,2]
[366750121,1750431613150,-116.58188054,0.00019412,2]
[366750122,1750431621697,-183.41811946,0.00019412,2]
[366750123,1750431621723,-101.13116732,0.00019412,2]
[366750124,1750431629132,284.54928678,0.000191,2]
[366750125,1750431635498,-188.23937203,0.00019412,2]
[366750126,1750431637326,198.73266096,0.00018831,2]
[366750127,1750431638587,-197.69879216,0.00019412,2]
[366750128,1750431668363,4671.5196115,0.00018686,2]
[366750129,1750431746392,-166.0273955,0.00019312,2]
[366750131,1750431783978,-155.71071322,0.00019178,2]
[366750133,1750431789998,-23.95776078,0.00019178,2]
[366750134,1750431790022,-75.44834909,0.00019312,2]
[366750135,1750431790048,-84.62508373,0.00019411,2]
[366750136,1750431795723,155.71071322,0.000191,2]
[366750139,1750431928861,34997.1906326,0.000191,2]
[366750140,1750431928908,24000.0,0.000191,2]
[366750141,1750431928950,24000.0,0.000191,2]
[366750142,1750431928995,24000.0,0.000191,2]
[366750143,1750431929041,24000.0,0.000191,2]
[366750144,1750431929086,24000.0,0.000191,2]
[366750145,1750431929128,24000.0,0.000191,2]
[366750146,1750431929169,24000.0,0.000191,2]
[366750147,1750431929212,24000.0,0.000191,2]
[366750148,1750431929255,24000.0,0.000191,2]
[366750149,1750431929299,24000.0,0.000191,2]
[366750150,1750431929342,24000.0,0.000191,2]
[366750151,1750431929383,24000.0,0.000191,2]
[366750152,1750431929427,24000.0,0.000191,2]
[366750153,1750431929469,24000.0,0.000191,2]
[366750154,1750431929702,24000.0,0.000191,2]
[366750155,1750431929748,24000.0,0.000191,2]
[366750156,1750431929791,24000.0,0.000191,2]
[366750157,1750431929833,24000.0,0.000191,2]
[366750158,1750431929875,24000.0,0.000191,2]
[366750159,1750431929916,24000.0,0.000191,2]
[366750160,1750431929957,24000.0,0.000191,2]
[366750161,1750431929999,24000.0,0.000191,2]
[366750162,1750431930043,24000.0,0.000191,2]
[366750163,1750431930084,24000.0,0.000191,2]
[366750164,1750431930127,24000.0,0.000191,2]
[366750165,1750431930167,24000.0,0.000191,2]
[366750166,1750431930212,24000.0,0.000191,2]
[366750167,1750431930256,24000.0,0.000191,2]
[366750168,1750431930300,24000.0,0.000191,2]
[366750169,1750431930343,24000.0,0.000191,2]
[366750170,1750431930386,24000.0,0.000191,2]
[366750171,1750431930429,24000.0,0.000191,2]
[366750172,1750431930475,24000.0,0.000191,2]
[366750173,1750431930520,24000.0,0.000191,2]
[366750174,1750431930563,24000.0,0.000191,2]
[366750175,1750431930606,24000.0,0.000191,2]
[366750176,1750431930650,24000.0,0.000191,2]
[366750177,1750431930693,24000.0,0.000191,2]
[366750178,1750431930736,24000.0,0.000191,2]
[366750179,1750431930776,24000.0,0.000191,2]
[366750180,1750431930819,24000.0,0.000191,2]
[366750181,1750431930860,24000.0,0.000191,2]
[366750182,1750431930902,24000.0,0.000191,2]
[366750183,1750431930942,24000.0,0.000191,2]
[366750184,1750431930982,24000.0,0.000191,2]
[366750185,1750431931021,24000.0,0.000191,2]
[366750186,1750431931062,24000.0,0.000191,2]
[366750187,1750431931103,24000.0,0.000191,2]
[366750188,1750431931146,24000.0,0.000191,2]
[366750189,1750431931189,24000.0,0.000191,2]
[366750190,1750431963606,-157.9651217,0.00019217,2]
[366750193,1750432016686,-4813.0,0.00019217,2]
[366750195,1750432074833,-160.0,0.00019025,2]
[366750196,1750432080543,-160.0,0.00019025,2]
[366750199,1750432082750,-160.0,0.00019025,2]
[366750200,1750432090340,-187.90630452,0.00018973,2]
[366750206,1750432154104,-200.0,0.00018783,2]
[366750207,1750432157327,156.34257444,6.9e-07,2]
[366750208,1750432157436,156.34257444,6.9e-07,2]
[366750209,1750432157550,156.34257444,6.9e-07,2]
[366750210,1750432157632,156.34257444,6.9e-07,2]
[366750211,1750432157774,156.34257444,6.9e-07,2]
[366750212,1750432157879,156.34257444,6.9e-07,2]
[366750213,1750432157988,156.34257444,6.9e-07,2]
[366750214,1750432158089,156.34257444,6.9e-07,2]
[366750215,1750432158219,156.34257444,6.9e-07,2]
[366750216,1750432159173,156.34257444,6.9e-07,2]
[366750217,1750432169471,-171.0559228,0.00018622,2]
[366750218,1750432193723,-166.3,0.00018411,2]
[366750219,1750432203466,-202.92814066,0.00018386,2]
[366750220,1750432213501,-150.0,0.00019,7]
[366750221,1750432230539,5000.0,0.00016127,2]
[366750222,1750432230821,177.32,0.00016,2]
[366750223,1750432231178,-150.0,0.00018204,2]
[366750249,1750432232396,-1472.0,0.00018204,2]
[366750251,1750432232406,-1904.03147194,0.00018386,2]
[366750253,1750432232417,-32.3023824,0.00018411,2]
[366750255,1750432232426,-40.22168111,0.00018622,2]
[366750257,1750432232436,-4800.0,0.00018783,2]
[366750259,1750432232446,-222.42685085,0.00018873,2]
[366750261,1750432232457,-3361.70059496,0.00019,7]
[366750263,1750432232469,-6.33890364,0.00019025,2]
[366750265,1750432232480,-1200.0,0.0001931,2]
[366750267,1750432232490,-228.5755933,0.0001931,2]
[366750269,1750432232500,-867.4859533,0.00019311,2]
[366750271,1750432232510,-228.57559329,0.00019312,2]
[366750273,1750432232520,-1089.17544419,0.00019313,2]
[366750275,1750432232530,-228.57559329,0.00019313,2]
[366750277,1750432232540,-594.0,0.00019403,3]
[366750279,1750432232549,-197.99,0.00019404,3]
[366750281,1750432232559,-300.0,0.00019409,2]
[366750282,1750432232568,-460.0,0.0001941,2]
[366750284,1750432232577,-500.0,0.0001941,2]
[366750286,1750432232587,-500.0,0.0001941,2]
[366750288,1750432232597,-500.0,0.0001941,2]
[366750290,1750432232607,-500.0,0.0001941,2]
[366750292,1750432232616,-500.0,0.0001941,2]
[366750294,1750432232626,-500.0,0.0001941,2]
[366750296,1750432232636,-500.0,0.0001941,2]
[366750298,1750432232646,-500.0,0.0001941,2]
[366750300,1750432232656,-500.0,0.0001941,2]
[366750302,1750432232665,-500.0,0.0001941,2]
[366750304,1750432232675,-500.0,0.0001941,2]
[366750306,1750432232684,-500.0,0.0001941,2]
[366750308,1750432232694,-500.0,0.0001941,2]
[366750310,1750432232704,-251.36095592,0.0001941,2]
[366750312,1750432232714,-500.0,0.0001941,2]